bitfinex/quotes_BTCUSD_20250110
["timestamp","ask_amount","ask_price","bid_price","bid_amount"]
[1736539433848,0.2095,95466.0,95452.0,0.209529]
[1736539434048,0.002,95460.0,95453.0,0.209527]
[1736539434248,0.001,95460.0,95453.0,0.209527]
[1736539434451,0.001,95460.0,95451.0,1.5]
[1736539434655,0.210507,95463.0,95451.0,1.5]
[1736539434849,0.209507,95463.0,95451.0,1.5]
[1736539435081,0.210507,95463.0,95451.0,1.5]
[1736539435684,0.001,95463.0,95454.0,0.209523]
[1736539435888,0.209507,95462.0,95451.0,1.709529]
[1736539436148,0.209507,95462.0,95451.0,1.5]
[1736539436567,0.001,95460.0,95451.0,1.5]
[1736539436798,0.209509,95461.0,95451.0,1.5]
[1736539436974,0.209509,95461.0,95449.0,0.209535]
[1736539436975,0.209509,95461.0,95452.0,0.209529]
[1736539437823,0.209525,95454.0,95442.0,0.209551]
[1736539437972,0.209529,95452.0,95439.0,1.5]
[1736539438175,0.209525,95454.0,95439.0,1.5]
[1736539438380,0.209518,95458.0,95439.0,1.5]
[1736539438789,0.209523,95455.0,95439.0,1.5]
[1736539438995,0.209523,95455.0,95444.0,0.209545]
[1736539439594,0.209531,95452.0,95441.0,0.209553]
[1736539440418,0.209525,95454.0,95440.0,0.209555]
[1736539440620,0.209525,95454.0,95444.0,0.209546]
[1736539440799,0.209522,95456.0,95444.0,0.209546]
[1736539441003,0.209531,95451.0,95444.0,0.001]
[1736539441198,0.209522,95455.0,95444.0,0.001]
[1736539441199,0.209544,95446.0,95444.0,0.001]
[1736539441403,0.209551,95442.0,95439.0,1.5]
[1736539441808,0.0807,95453.0,95439.0,1.5]
[1736539442007,0.20953,95452.0,95440.0,0.209555]
[1736539442211,0.217323,95455.0,95439.0,1.5]
[1736539442472,0.209531,95451.0,95440.0,0.10429976]
[1736539442859,0.209531,95451.0,95439.0,1.5]
[1736539443212,0.10429976,95450.0,95439.0,1.5]
[1736539443391,0.209547,95444.0,95439.0,1.5]
[1736539444427,0.209535,95449.0,95439.0,1.5]
[1736539444961,0.209525,95454.0,95439.0,1.5]
[1736539445160,0.209525,95454.0,95443.0,0.209547]
[1736539445691,0.209525,95454.0,95445.0,0.209544]
[1736539445970,0.209522,95456.0,95445.0,0.209544]
[1736539446178,0.209512,95460.0,95441.0,0.209553]
[1736539446179,0.209512,95460.0,95449.0,0.209535]
[1736539446355,0.209521,95456.0,95445.0,0.209543]
[1736539446598,0.209521,95456.0,95450.0,1.5]
[1736539446791,0.20953,95452.0,95450.0,1.5]
[1736539447337,0.210521,95456.0,95433.0,0.20957]
[1736539447338,0.209552,95442.0,95433.0,0.20957]
[1736539447740,0.209542,95447.0,95433.0,0.20957]
[1736539447940,0.209542,95447.0,95434.0,1.5]
[1736539448114,0.209548,95444.0,95434.0,1.5]
[1736539448913,0.209562,95438.0,95425.0,0.209587]
[1736539449142,0.0764,95450.0,95428.0,0.209581]
[1736539449346,0.209564,95437.0,95424.0,0.209588]
[1736539449557,0.20954,95447.0,95425.0,1.919176]
[1736539449768,0.209555,95441.0,95433.0,0.004]
[1736539449996,0.209544,95445.0,95426.0,0.209586]
[1736539450198,0.0764,95459.0,95443.0,0.209547]
[1736539450402,0.001,95450.0,95443.0,0.209547]
[1736539450616,0.15,95455.0,95443.0,0.209547]
[1736539450827,0.15,95453.0,95443.0,0.209547]
[1736539451049,0.002,95441.0,95433.0,0.0777]
[1736539451246,0.001,95441.0,95433.0,0.0777]
[1736539451647,0.15,95451.0,95440.0,0.209555]
[1736539451857,0.15,95449.0,95440.0,0.209555]
[1736539452347,0.15,95447.0,95429.0,0.209579]
[1736539452566,0.15,95447.0,95422.0,0.0812]
[1736539452567,0.10429976,95446.0,95422.0,0.0812]
[1736539452812,0.209574,95432.0,95422.0,0.209594]
[1736539453018,0.15,95445.0,95413.0,0.0456]
[1736539453225,0.15,95443.0,95422.0,0.209595]
[1736539453427,0.209572,95433.0,95422.0,0.209595]
[1736539453836,0.15,95441.0,95423.0,1.5]
[1736539454057,0.209564,95437.0,95433.0,0.004]
[1736539454261,0.209564,95437.0,95427.0,0.209583]
[1736539454442,0.20957,95434.0,95424.0,0.20959]
[1736539454653,0.001,95433.0,95424.0,0.20959]
[1736539454786,0.210571,95433.0,95423.0,1.5]
[1736539455003,0.209573,95432.0,95423.0,1.5]
[1736539455561,0.209575,95431.0,95423.0,1.5]
[1736539455718,0.209573,95432.0,95423.0,1.5]
[1736539456139,0.209582,95428.0,95423.0,1.5]
[1736539456330,0.20959,95424.0,95423.0,1.5]
[1736539457338,0.419169,95427.0,95423.0,1.5]
[1736539457586,0.209588,95425.0,95423.0,1.5]
[1736539457805,0.001,95424.0,95423.0,1.5]
[1736539457987,0.209588,95425.0,95423.0,1.5]
[1736539459512,0.001,95424.0,95423.0,1.502]
[1736539459667,0.001,95424.0,95423.0,1.5]
[1736539459881,0.209588,95425.0,95423.0,1.5]
[1736539460149,0.209588,95425.0,95423.0,1.502]
[1736539460495,0.209588,95425.0,95423.0,1.5]
[1736539461079,0.210588,95425.0,95423.0,1.5]
[1736539461284,0.001,95424.0,95423.0,1.5]
[1736539461531,0.20961,95415.0,95414.0,0.0001706]
[1736539461968,0.15,95422.0,95414.0,0.0001706]
[1736539462166,0.209607,95417.0,95414.0,0.0001706]
[1736539462559,0.0569208,95416.0,95414.0,0.0001706]
[1736539462790,0.46390976,95415.0,95414.0,0.0001706]
[1736539462976,0.54640976,95415.0,95414.0,0.0001706]
[1736539463617,0.44211,95415.0,95414.0,0.0001706]
[1736539463847,0.35961,95415.0,95414.0,0.0011706]
[1736539463999,0.35961,95415.0,95414.0,0.0001706]
[1736539464478,0.36061,95415.0,95414.0,0.0001706]
[1736539465349,0.35961,95415.0,95414.0,0.0001706]
[1736539465756,0.54179156,95415.0,95414.0,0.0001706]
[1736539465975,0.46390976,95415.0,95414.0,0.0001706]
[1736539466297,0.48690976,95415.0,95414.0,7.791e-05]
[1736539466531,0.71350976,95415.0,95414.0,7.791e-05]
[1736539466701,0.71750976,95415.0,95414.0,7.791e-05]
[1736539466876,0.71950976,95415.0,95414.0,7.791e-05]
[1736539467229,0.71550976,95415.0,95414.0,7.791e-05]
[1736539467445,0.71750976,95415.0,95414.0,7.791e-05]
[1736539467841,0.71650976,95415.0,95414.0,7.791e-05]
[1736539468044,0.72050976,95415.0,95414.0,0.00107791]
[1736539468284,0.62050976,95415.0,95414.0,0.00107791]
[1736539469228,0.61750976,95415.0,95414.0,0.00107791]
[1736539469610,0.61950976,95415.0,95414.0,0.00107791]
[1736539469888,0.54660976,95415.0,95414.0,0.00107791]
[1736539470200,0.54060976,95415.0,95414.0,7.791e-05]
[1736539470404,0.55240976,95415.0,95414.0,0.00107791]
[1736539472009,0.57540976,95415.0,95414.0,0.00107791]
[1736539472766,0.31790976,95415.0,95414.0,0.00107791]
[1736539472985,0.32570976,95415.0,95414.0,0.00107791]
[1736539473392,0.46790976,95415.0,95414.0,0.00107791]
[1736539473595,0.47570976,95415.0,95414.0,0.00107791]
[1736539473817,0.47370976,95415.0,95414.0,0.00107791]
[1736539474016,0.46790976,95415.0,95414.0,0.00107791]
[1736539474263,0.47570976,95415.0,95414.0,0.00107791]
[1736539474462,0.47370976,95415.0,95414.0,7.791e-05]
[1736539475953,0.47570976,95415.0,95414.0,0.00107791]
[1736539476335,0.49870976,95415.0,95414.0,0.00107791]
[1736539482717,0.58080976,95415.0,95414.0,0.00107791]
[1736539483332,0.68080976,95415.0,95414.0,0.00107791]
[1736539483748,0.58080976,95415.0,95414.0,0.00107791]
[1736539483961,0.46790976,95415.0,95414.0,0.00107791]
[1736539484166,0.47570976,95415.0,95414.0,0.00107791]
[1736539485012,0.47570976,95415.0,95414.0,7.791e-05]
[1736539485013,0.47370976,95415.0,95414.0,7.791e-05]
[1736539486401,0.46590976,95415.0,95414.0,7.791e-05]
[1736539486606,0.47370976,95415.0,95414.0,7.791e-05]
[1736539486849,0.47570976,95415.0,95414.0,7.791e-05]
[1736539487249,0.49870976,95415.0,95414.0,7.791e-05]
[1736539487668,0.72470976,95415.0,95414.0,7.791e-05]
[1736539489360,0.82470976,95415.0,95414.0,7.791e-05]
[1736539489559,0.82270976,95415.0,95414.0,9.1e-07]
[1736539489764,0.559619,95411.0,95410.0,9.36e-05]
[1736539489969,0.76921876,95411.0,95410.0,9.36e-05]
[1736539490231,0.76921876,95411.0,95410.0,6e-07]
[1736539491207,0.77321876,95411.0,95410.0,6e-07]
[1736539491408,0.77321876,95411.0,95401.0,0.0001312]
[1736539491409,0.459639,95402.0,95401.0,0.0001312]
[1736539491607,0.58693876,95402.0,95401.0,0.0001312]
[1736539493464,0.58693876,95402.0,95401.0,0.0011312]
[1736539493663,0.60644922,95402.0,95401.0,0.0011312]
[1736539493868,0.59744922,95402.0,95401.0,0.0001312]
[1736539494047,0.49744922,95402.0,95401.0,0.0001312]
[1736539494225,0.59744922,95402.0,95401.0,0.0001312]
[1736539494629,0.60144922,95402.0,95401.0,0.0001312]
[1736539495454,0.60844922,95402.0,95401.0,0.0011312]
[1736539497825,0.61624922,95402.0,95401.0,0.0011312]
[1736539499625,0.51624922,95402.0,95401.0,0.0011312]
[1736539499801,0.50844922,95402.0,95401.0,0.0011312]
[1736539500147,0.51624922,95402.0,95401.0,0.0011312]
[1736539500756,0.49324922,95402.0,95401.0,0.0011312]
[1736539500957,0.48544922,95402.0,95401.0,0.0011312]
[1736539501611,0.50444922,95402.0,95401.0,0.0011312]
[1736539501837,0.50144922,95402.0,95401.0,0.0001312]
[1736539502239,0.50844922,95402.0,95401.0,0.0011312]
[1736539502442,0.49744922,95402.0,95401.0,0.0001312]
[1736539502818,0.50644922,95402.0,95401.0,0.0011312]
[1736539503092,0.73794922,95402.0,95401.0,0.0011312]
[1736539503347,0.73194922,95402.0,95401.0,0.0001312]
[1736539503476,0.73894922,95402.0,95401.0,0.0011312]
[1736539503677,0.73894922,95402.0,95401.0,0.0001312]
[1736539503878,0.73194922,95402.0,95401.0,0.0001312]
[1736539504083,0.72894922,95402.0,95401.0,0.0001312]
[1736539504286,0.82294436,95402.0,95401.0,0.0001312]
[1736539504490,0.82694436,95402.0,95401.0,0.0001312]
[1736539504689,0.73294922,95402.0,95401.0,0.0001312]
[1736539504889,0.72894922,95402.0,95401.0,0.0001312]
[1736539505296,0.73894922,95402.0,95401.0,0.0011312]
[1736539505662,0.73294922,95402.0,95401.0,0.0001312]
[1736539505792,0.72894922,95402.0,95401.0,0.0001312]
[1736539505994,0.73894922,95402.0,95401.0,0.0011312]
[1736539506195,0.48444922,95402.0,95401.0,0.0011312]
[1736539506394,0.33444922,95402.0,95401.0,0.0011312]
[1736539507189,0.32844922,95402.0,95401.0,0.0001312]
[1736539507395,0.40000054,95402.0,95401.0,0.0001312]
[1736539507593,0.47444922,95402.0,95401.0,0.0001312]
[1736539507795,0.47844922,95402.0,95401.0,0.0001312]
[1736539508318,0.47444922,95402.0,95401.0,0.0001312]
[1736539508515,0.47544922,95402.0,95401.0,0.0001312]
[1736539508745,0.47844922,95402.0,95401.0,0.0001312]
[1736539509097,0.47544922,95402.0,95401.0,0.0001312]
[1736539509314,0.47844922,95402.0,95401.0,0.0001312]
[1736539512769,0.01451046,95402.0,95401.0,0.0001312]
[1736539513711,0.22414946,95402.0,95401.0,0.0001312]
[1736539514370,0.004,95402.0,95401.0,0.0001312]
[1736539514616,0.004,95402.0,95401.0,0.0799312]
[1736539514831,0.004,95402.0,95401.0,0.12727926]
[1736539514994,0.004,95402.0,95401.0,0.30720102]
[1736539515190,0.004,95402.0,95401.0,0.30615299]
[1736539515530,0.003,95402.0,95401.0,1.82686312]
[1736539515730,0.004,95402.0,95401.0,1.82686312]
[1736539515933,0.001,95402.0,95401.0,1.82686312]
[1736539516137,0.217329,95452.0,95428.0,0.0457]
[1736539516418,0.209538,95448.0,95429.0,0.0255289]
[1736539516619,0.209529,95452.0,95430.0,0.0010478]
[1736539516834,0.209529,95452.0,95437.0,0.209561]
[1736539517075,8.54e-05,95454.0,95439.0,0.209557]
[1736539517669,8.54e-05,95454.0,95440.0,1.50104767]
[1736539517810,8.54e-05,95454.0,95440.0,1.58781267]
[1736539518012,0.0020854,95441.0,95440.0,1.58781267]
[1736539518459,0.0020854,95441.0,95440.0,1.5]
[1736539518931,0.0020854,95441.0,95440.0,1.5498]
[1736539519524,0.0020854,95441.0,95440.0,1.5528]
[1736539519729,0.0020854,95441.0,95440.0,1.73339976]
[1736539519935,8.54e-05,95441.0,95440.0,1.83339976]
[1736539520137,8.54e-05,95441.0,95440.0,1.93769952]
[1736539520893,8.54e-05,95441.0,95440.0,1.94369952]
[1736539521249,8.54e-05,95441.0,95440.0,1.83469952]
[1736539521444,8.54e-05,95441.0,95440.0,1.83769952]
[1736539521584,8.54e-05,95441.0,95440.0,1.74239976]
[1736539521783,8.54e-05,95441.0,95440.0,1.73039976]
[1736539522225,8.54e-05,95441.0,95440.0,1.73539976]
[1736539522669,8.54e-05,95441.0,95440.0,1.73039976]
[1736539522985,8.54e-05,95441.0,95440.0,1.84080545]
[1736539523125,8.54e-05,95441.0,95440.0,1.94510521]
[1736539523364,8.54e-05,95441.0,95440.0,1.95410521]
[1736539523570,8.54e-05,95441.0,95440.0,1.94510521]
[1736539524032,8.54e-05,95441.0,95440.0,1.95410521]
[1736539524283,8.54e-05,95441.0,95440.0,1.95910521]
[1736539524454,8.54e-05,95441.0,95440.0,1.95010521]
[1736539524657,8.54e-05,95441.0,95440.0,1.95910521]
[1736539524968,8.54e-05,95441.0,95440.0,1.95010521]
[1736539525170,8.54e-05,95441.0,95440.0,2.10010521]
[1736539525318,8.54e-05,95441.0,95440.0,2.20910521]
[1736539528787,8.54e-05,95454.0,95453.0,0.285227]
[1736539529003,8.54e-05,95454.0,95453.0,0.47364946]
[1736539529210,8.54e-05,95454.0,95453.0,0.67364946]
[1736539529431,8.54e-05,95454.0,95453.0,0.69664946]
[1736539529617,8.54e-05,95454.0,95453.0,2.34664946]
[1736539530377,8.54e-05,95454.0,95453.0,2.35564946]
[1736539530578,8.54e-05,95454.0,95453.0,2.3673828]
[1736539530799,8.54e-05,95454.0,95453.0,2.3521828]
[1736539530983,8.54e-05,95454.0,95453.0,2.3611828]
[1736539531385,8.54e-05,95454.0,95453.0,2.3533828]
[1736539531813,8.54e-05,95454.0,95453.0,2.3443828]
[1736539532157,8.54e-05,95454.0,95453.0,2.35465514]
[1736539532787,8.54e-05,95454.0,95453.0,2.35965514]
[1736539533377,8.54e-05,95454.0,95453.0,2.36865514]
[1736539538097,8.54e-05,95454.0,95453.0,2.37645514]
[1736539538420,8.54e-05,95454.0,95453.0,2.36865514]
[1736539539813,8.54e-05,95454.0,95453.0,1.98013244]
[1736539540827,8.54e-05,95454.0,95453.0,1.64557234]
[1736539541077,8.54e-05,95454.0,95453.0,1.723527]
[1736539541223,8.54e-05,95454.0,95453.0,1.82782676]
[1736539541610,8.54e-05,95454.0,95453.0,1.82282676]
[1736539541971,8.54e-05,95454.0,95453.0,1.82482676]
[1736539542170,8.54e-05,95454.0,95453.0,1.8803008]
[1736539542556,8.54e-05,95454.0,95453.0,1.8783008]
[1736539542967,8.54e-05,95454.0,95453.0,1.8813008]
[1736539543563,8.54e-05,95454.0,95453.0,1.82582676]
[1736539543961,8.54e-05,95454.0,95453.0,0.32582676]
[1736539544191,8.54e-05,95454.0,95453.0,0.33282676]
[1736539544390,0.2096104,95454.0,95453.0,1.519]
[1736539544657,0.21275062,95454.0,95453.0,1.519]
[1736539544886,0.21275062,95454.0,95453.0,1.503]
[1736539545332,0.21275062,95454.0,95453.0,1.508]
[1736539545900,0.00322562,95454.0,95453.0,1.508]
[1736539546061,0.00322562,95454.0,95453.0,1.61529976]
[1736539546256,8.54e-05,95454.0,95453.0,1.79535907]
[1736539546462,8.54e-05,95454.0,95453.0,1.89235907]
[1736539547363,8.54e-05,95454.0,95453.0,1.89211068]
[1736539547579,8.54e-05,95454.0,95453.0,1.99641044]
[1736539547764,0.0010854,95454.0,95453.0,1.99641044]
[1736539547969,8.54e-05,95454.0,95453.0,1.99641044]
[1736539548304,8.54e-05,95454.0,95453.0,1.90541044]
[1736539548504,8.54e-05,95454.0,95453.0,1.89641044]
[1736539548711,8.54e-05,95454.0,95453.0,1.90141044]
[1736539548951,8.54e-05,95454.0,95453.0,1.80141044]
[1736539549161,8.54e-05,95454.0,95453.0,1.75221044]
[1736539549366,8.54e-05,95454.0,95453.0,1.64291068]
[1736539549603,8.54e-05,95454.0,95453.0,1.63756319]
[1736539549981,8.54e-05,95454.0,95453.0,1.61705137]
[1736539550195,8.54e-05,95454.0,95453.0,1.62605137]
[1736539550395,8.54e-05,95454.0,95453.0,1.61705137]
[1736539550808,8.54e-05,95454.0,95453.0,1.62605137]
[1736539550964,8.54e-05,95454.0,95453.0,1.61705137]
[1736539551418,8.54e-05,95454.0,95453.0,1.514]
[1736539551615,8.54e-05,95454.0,95453.0,1.509]
[1736539551847,8.54e-05,95454.0,95453.0,1.5]
[1736539552060,8.54e-05,95454.0,95453.0,1.512]
[1736539552449,0.00311411,95454.0,95453.0,1.507]
[1736539552831,0.2776854,95454.0,95453.0,0.009]
[1736539553014,0.28068881,95454.0,95453.0,0.009]
[1736539553195,0.28068881,95454.0,95453.0,1.509]
[1736539553401,0.28068881,95454.0,95453.0,1.502]
[1736539553603,0.28068881,95454.0,95453.0,0.002]
[1736539553826,0.28068881,95454.0,95453.0,0.008]
[1736539554027,0.28068881,95454.0,95453.0,0.002]
[1736539554229,0.28068881,95454.0,95441.0,1.5]
[1736539554438,0.1286854,95454.0,95453.0,0.002]
[1736539554631,0.49121872,95454.0,95453.0,0.002]
[1736539555064,0.50183525,95454.0,95453.0,0.002]
[1736539555308,0.50963525,95454.0,95453.0,0.002]
[1736539555714,0.50963525,95454.0,95441.0,1.5]
[1736539555715,0.209551,95442.0,95441.0,1.5]
[1736539556146,0.20943137,95442.0,95441.0,1.5]
[1736539556523,0.21243396,95442.0,95441.0,1.5]
[1736539557206,0.21243396,95442.0,95441.0,1.504]
[1736539558577,0.00300259,95442.0,95441.0,1.55015923]
[1736539558947,0.209543,95446.0,95441.0,1.55115923]
[1736539559097,0.209543,95446.0,95441.0,0.05115923]
[1736539559278,0.209546,95444.0,95441.0,0.005]
[1736539559485,0.209546,95444.0,95443.0,1.5]
[1736539559934,0.21253724,95444.0,95443.0,1.5]
[1736539561084,0.00299124,95444.0,95443.0,1.501]
[1736539561299,0.00299124,95444.0,95443.0,1.5]
[1736539561504,0.209528,95453.0,95443.0,1.5]
[1736539561646,0.209528,95453.0,95444.0,0.00104762]
[1736539561852,0.0029521,95452.0,95445.0,0.10429976]
[1736539562121,0.0029521,95452.0,95450.0,0.23043138]
[1736539562311,8.54e-05,95454.0,95452.0,0.209529]
[1736539562649,8.54e-05,95454.0,95453.0,0.0010475]
[1736539562798,8.54e-05,95454.0,95451.0,0.0010475]
[1736539563200,8.54e-05,95454.0,95452.0,0.209529]
[1736539563400,8.54e-05,95454.0,95453.0,0.0010475]
[1736539563842,8.54e-05,95454.0,95453.0,1.5]
[1736539564718,8.54e-05,95454.0,95453.0,1.504]
[1736539564917,8.54e-05,95454.0,95453.0,1.505]
[1736539566554,8.54e-05,95454.0,95453.0,1.71359952]
[1736539567166,8.54e-05,95454.0,95453.0,1.60929976]
[1736539573753,8.54e-05,95454.0,95453.0,1.68609976]
[1736539573958,8.54e-05,95454.0,95453.0,1.93539976]
[1736539574173,8.54e-05,95454.0,95453.0,2.10839976]
[1736539574572,8.54e-05,95454.0,95453.0,2.10339976]
[1736539574823,8.54e-05,95454.0,95453.0,2.20769952]
[1736539575077,8.54e-05,95454.0,95453.0,2.21269952]
[1736539575281,8.54e-05,95454.0,95453.0,2.21644731]
[1736539575479,8.54e-05,95454.0,95453.0,2.22444731]
[1736539575679,8.54e-05,95454.0,95453.0,2.23044731]
[1736539575935,8.54e-05,95454.0,95453.0,2.22269952]
[1736539576273,8.54e-05,95454.0,95453.0,2.23044644]
[1736539578910,4e-07,95454.0,95453.0,2.34094644]
[1736539579104,8.54e-05,95478.0,95477.0,0.1]
[1736539579336,8.54e-05,95478.0,95477.0,0.46232081]
[1736539579487,8.54e-05,95478.0,95477.0,0.71127376]
[1736539579693,8.54e-05,95478.0,95477.0,2.28847376]
[1736539580334,8.54e-05,95478.0,95477.0,2.29622068]
[1736539580534,8.54e-05,95478.0,95477.0,2.3176128]
[1736539581892,8.54e-05,95478.0,95477.0,2.3406128]
[1736539582082,8.54e-05,95478.0,95477.0,2.3456128]
[1736539582476,8.54e-05,95478.0,95477.0,2.3406128]
[1736539582633,8.54e-05,95478.0,95477.0,2.3496128]
[1736539582843,8.54e-05,95478.0,95477.0,2.3476128]
[1736539583226,8.54e-05,95478.0,95477.0,2.35919013]
[1736539584109,8.54e-05,95478.0,95477.0,2.36699013]
[1736539584287,8.54e-05,95478.0,95477.0,2.35999013]
[1736539584504,8.54e-05,95478.0,95477.0,2.36099013]
[1736539586926,8.54e-05,95478.0,95477.0,2.26099013]
[1736539587066,8.54e-05,95478.0,95477.0,2.36099013]
[1736539588366,0.082,95524.0,95497.0,0.0481]
[1736539588506,0.082,95524.0,95499.0,0.1]
[1736539588718,0.0771,95532.0,95501.0,0.209421]
[1736539588920,0.0771,95532.0,95501.0,0.31372076]
[1736539589138,0.0771,95532.0,95501.0,1.81372076]
[1736539589462,0.0771,95532.0,95501.0,2.18672076]
[1736539589665,8.53e-05,95517.0,95501.0,2.29102052]
[1736539589878,8.53e-05,95517.0,95501.0,2.07702052]
[1736539590102,8.53e-05,95517.0,95501.0,2.17702052]
[1736539590748,0.0792,95511.0,95501.0,0.009]
[1736539590946,0.209415,95504.0,95501.0,0.009]
[1736539591262,0.00316471,95502.0,95501.0,0.009]
[1736539591487,0.00316471,95502.0,95495.0,0.209435]
[1736539591686,0.00316471,95502.0,95501.0,0.009]
[1736539592089,0.00316471,95502.0,95494.0,1.5]
[1736539592315,0.00316471,95502.0,95494.0,1.60429976]
[1736539592526,8.53e-05,95502.0,95501.0,0.004]
[1736539593327,8.53e-05,95502.0,95497.0,0.209429]
[1736539593524,8.53e-05,95502.0,95500.0,0.209422]
[1736539593727,8.53e-05,95502.0,95501.0,0.10529976]
[1736539594220,8.53e-05,95502.0,95501.0,0.10429976]
[1736539594382,0.0031235,95502.0,95501.0,0.10429976]
[1736539594764,8.53e-05,95502.0,95501.0,0.10429976]
[1736539595371,8.53e-05,95502.0,95501.0,0.11129976]
[1736539595794,8.53e-05,95502.0,95501.0,0.007]
[1736539596216,0.00314367,95502.0,95501.0,0.011]
[1736539596551,0.00314917,95502.0,95501.0,0.011]
[1736539596753,0.00314917,95502.0,95501.0,0.007]
[1736539597158,0.00314917,95502.0,95501.0,1.509]
[1736539597336,0.00314917,95502.0,95501.0,1.502]
[1736539597535,8.53e-05,95502.0,95501.0,1.502]
[1736539598832,8.53e-05,95502.0,95501.0,1.505]
[1736539599144,0.00314113,95502.0,95501.0,1.505]
[1736539599345,8.53e-05,95502.0,95501.0,1.505]
[1736539600270,0.00314435,95502.0,95501.0,1.505]
[1736539601342,0.06628259,95502.0,95501.0,1.505]
[1736539601623,0.00314435,95502.0,95501.0,1.505]
[1736539602093,0.00314435,95502.0,95501.0,1.502]
[1736539602294,8.53e-05,95502.0,95501.0,1.502]
[1736539602525,8.53e-05,95502.0,95501.0,1.503]
[1736539602721,8.53e-05,95502.0,95501.0,1.502]
[1736539602933,8.53e-05,95502.0,95501.0,1.5]
[1736539602934,0.0779853,95502.0,95501.0,1.5]
[1736539603139,0.15,95501.0,95471.0,0.209485]
[1736539603490,0.209466,95481.0,95472.0,0.10429976]
[1736539603692,0.209474,95477.0,95473.0,1.5]
[1736539604118,0.209466,95481.0,95473.0,1.5]
[1736539604119,0.0030547,95476.0,95473.0,1.5]
[1736539604535,0.209466,95481.0,95473.0,1.5]
[1736539604743,0.081,95482.0,95473.0,1.5]
[1736539604915,0.00304164,95480.0,95473.0,1.5]
[1736539605128,0.081,95482.0,95473.0,1.5]
[1736539605317,0.209467,95480.0,95473.0,1.5]
[1736539606528,0.209467,95480.0,95473.0,1.502]
[1736539606736,0.209472,95478.0,95473.0,1.502]
[1736539606956,0.209472,95478.0,95473.0,0.002]
[1736539607102,0.209467,95480.0,95472.0,0.02141712]
[1736539607303,0.00303784,95479.0,95473.0,0.001]
[1736539607997,0.00303784,95479.0,95478.0,1.5]
[1736539608517,0.209465,95481.0,95478.0,1.5]
[1736539608696,0.00303119,95479.0,95478.0,1.5]
[1736539609110,0.418931,95481.0,95478.0,1.5]
[1736539609285,0.081,95482.0,95473.0,0.002]
[1736539609286,0.209472,95478.0,95473.0,0.002]
[1736539609468,0.209478,95476.0,95473.0,0.002]
[1736539609667,0.209478,95476.0,95473.0,1.5]
[1736539609872,0.209478,95476.0,95473.0,1.501]
[1736539610056,0.0031715,95475.0,95473.0,1.502]
[1736539610258,0.209478,95476.0,95473.0,1.502]
[1736539610496,0.209481,95474.0,95473.0,1.501]
[1736539610697,0.21265094,95474.0,95473.0,1.502]
[1736539610959,0.21265094,95474.0,95473.0,1.501]
[1736539612087,0.21265094,95474.0,95473.0,1.5]
[1736539612416,0.00316994,95474.0,95473.0,1.5]
[1736539612941,0.209465,95482.0,95473.0,1.5]
[1736539613180,0.41893,95482.0,95468.0,0.209492]
[1736539613424,0.0034285,95481.0,95468.0,0.209492]
[1736539613625,0.0034285,95481.0,95471.0,0.02088221]
[1736539613833,0.0034285,95481.0,95480.0,1.5]
[1736539614345,0.41893,95482.0,95480.0,1.5]
[1736539614776,0.209458,95485.0,95480.0,1.5]
[1736539616609,0.209465,95481.0,95480.0,1.5]
[1736539616866,0.209465,95481.0,95459.0,0.0001706]
[1736539616867,0.0825,95481.0,95459.0,0.0001706]
[1736539617062,0.209492,95469.0,95459.0,0.0001706]
[1736539617498,0.209496,95467.0,95459.0,0.0001706]
[1736539617700,0.00343489,95468.0,95460.0,0.22998972]
[1736539618028,0.00343489,95468.0,95464.0,0.209501]
[1736539618371,0.209479,95475.0,95464.0,0.209501]
[1736539618816,0.00342964,95474.0,95464.0,0.209501]
[1736539619020,0.00342964,95474.0,95466.0,0.209498]
[1736539619675,0.00342964,95474.0,95461.0,0.10429976]
[1736539619676,0.209483,95473.0,95461.0,0.31380676]
[1736539620224,0.00344292,95472.0,95461.0,0.31380676]
[1736539620455,0.00344292,95472.0,95464.0,0.009]
[1736539620456,0.04671072,95472.0,95464.0,0.009]
[1736539620655,0.2868,95465.0,95464.0,0.009]
[1736539620860,0.2868,95465.0,95464.0,0.002]
[1736539621056,0.2902485,95465.0,95461.0,0.003]
[1736539621282,0.0499,95463.0,95461.0,0.003]
[1736539621500,0.209503,95464.0,95461.0,0.003]
[1736539621501,0.209503,95464.0,95461.0,0.002]
[1736539621681,0.0763,95474.0,95461.0,0.002]
[1736539621682,0.00342385,95462.0,95461.0,0.10629976]
[1736539621917,0.09408969,95482.0,95461.0,0.13694548]
[1736539622124,0.15,95484.0,95462.0,0.10534709]
[1736539622419,0.209467,95480.0,95462.0,0.10534709]
[1736539622594,0.209467,95480.0,95468.0,0.209493]
[1736539622780,0.00342735,95479.0,95468.0,0.31379276]
[1736539623794,0.00342735,95479.0,95475.0,1.5]
[1736539624203,0.209472,95478.0,95475.0,1.5]
[1736539624998,0.209456,95485.0,95475.0,1.502]
[1736539625213,0.00342549,95477.0,95475.0,1.502]
[1736539625419,0.209456,95485.0,95475.0,1.506]
[1736539625614,0.209465,95482.0,95475.0,1.506]
[1736539625912,0.209456,95485.0,95475.0,1.506]
[1736539626088,0.209466,95481.0,95475.0,1.506]
[1736539626532,0.209466,95481.0,95475.0,1.504]
[1736539626720,0.209466,95481.0,95475.0,1.506]
[1736539627020,0.209466,95481.0,95475.0,1.502]
[1736539627818,0.209466,95481.0,95475.0,1.501]
[1736539628042,0.209466,95481.0,95475.0,1.502]
[1736539628452,0.209456,95485.0,95475.0,1.505]
[1736539628627,0.209465,95482.0,95475.0,1.505]
[1736539628824,0.20945,95489.0,95475.0,1.714477]
[1736539629051,8.53e-05,95502.0,95487.0,0.209451]
[1736539629319,8.53e-05,95502.0,95501.0,0.209421]
[1736539629673,8.53e-05,95502.0,95501.0,1.709421]
[1736539630076,8.53e-05,95502.0,95501.0,1.5]
[1736539630723,8.53e-05,95502.0,95501.0,1.501]
[1736539631130,8.53e-05,95502.0,95501.0,1.502]
[1736539631303,8.53e-05,95502.0,95501.0,1.501]
[1736539631503,8.53e-05,95502.0,95501.0,1.5]
[1736539631884,8.53e-05,95502.0,95501.0,1.504]
[1736539633467,8.53e-05,95502.0,95501.0,1.506]
[1736539635360,8.53e-05,95502.0,95501.0,0.006]
[1736539635566,0.2095043,95502.0,95501.0,0.006]
[1736539635774,0.21316264,95502.0,95501.0,0.006]